[Event "Bangabandhu Premier Div League 2023-24"]
[Site "Dhaka"]
[Date "2024.02.07"]
[Round "7.1"]
[White "Alekhya Mukhopadhyay"]
[Black "Mohammad Minhaz Uddin"]
[Result "0-1"]
[ECO "C42"]
[WhiteElo "2184"]
[BlackElo "2224"]
[Annotator "RC"]
[PlyCount "151"]
[EventDate "2024.02.01"]
[EventCountry "BAN"]
[SourceTitle "playchess.com"]
[Source "ChessBase"]
[SourceQuality "1"]
[TimeControl "40/5400+30:1800+30"]

1. e4 {[%emt 0:00:07]} e5 {[%emt 0:00:10]} 2. Nf3 {[%emt 0:00:07]} Nf6 {[%emt 0:00:04]} 3. Nxe5 {[%emt 0:00:07]} d6 {[%emt 0:00:04]} 4. Nf3 {[%emt 0:00:07]} Nxe4 {[%emt 0:00:06]} 5. d4 {[%emt 0:00:12]} d5 {[%emt 0:00:04]} 6. Bd3 {[%emt 0:00:14]} Nc6 {[%emt 0:00:03]} 7. O-O {[%emt 0:00:33]} Be7 {[%emt 0:00:03]} 8. c4 {[%emt 0:00:16]} Nb4 {[%emt 0:00:03]} 9. Be2 {[%emt 0:00:18]} O-O {[%emt 0:00:03]} 10. Nc3 {[%emt 0:00:18]} Bf5 {[%emt 0:00:08]} 11. a3 {[%emt 0:00:09]} Nxc3 {[%emt 0:00:04]} 12. bxc3 {[%emt 0:00:04]} Nc6 {[%emt 0:00:06]} 13. Re1 {[%emt 0:00:10]} Re8 {[%emt 0:00:03]} 14. cxd5 {[%emt 0:00:10]} Qxd5 {[%emt 0:00:04]} 15. Bf4 {[%emt 0:00:05]} Rac8 {[%emt 0:05:41]} 16. h3 {[%emt 0:00:06]} Bd6 {[%emt 0:03:21]} 17. c4 {[%emt 0:00:28]} Qe4 {[%emt 0:00:12]} 18. Be3 {[%emt 0:00:16]} Qc2 {[%emt 0:01:01]} 19. c5 {[%emt 0:05:09]} Be7 {[%emt 0:03:32]} 20. d5 {[%emt 0:02:36]} Nb8 {[%emt 0:10:12]} 21. g4 {[%emt 0:07:26]} Bg6 {[%emt 0:02:01]} 22. d6 {[%emt 0:08:53]} cxd6 {[%emt 0:00:29]} 23. cxd6 {[%emt 0:00:04]} Bf6 {[%emt 0:00:18]} 24. Rc1 {[%emt 0:02:54]} Qxd1 {[%emt 0:00:08]} 25. Rcxd1 {[%emt 0:02:35]} Red8 {[%emt 0:18:27]} 26. Bxa7 {[%emt 0:02:29]} Bc3 {[%emt 0:00:23]} 27. Rf1 {[%emt 0:18:06]} Nd7 {[%emt 0:02:05]} 28. Nd4 {[%emt 0:15:31]} Ra8 {[%emt 0:03:43]} 29. Nb5 {[%emt 0:01:07]} Bb2 {[%emt 0:00:09]} 30. Bf3 {[%emt 0:05:50]} Bc2 {[%emt 0:03:26]} 31. Rd2 {[%emt 0:00:18]} Ba4 {[%emt 0:00:04]} 32. Rxb2 {[%emt 0:00:50]} Bxb5 {[%emt 0:00:03]} 33. Rxb5 {[%emt 0:00:06]} Rxa7 {[%emt 0:00:04]} 34. Ra1 {[%emt 0:01:12]} b6 {[%emt 0:10:10]} 35. Bc6 {[%emt 0:00:33]} Ra6 {[%emt 0:00:14]} 36. Re1 {[%emt 0:02:29]} Kf8 {[%emt 0:01:01]} 37. Rb3 {[%emt 0:10:31]} g5 {[%emt 0:19:29]} 38. Rf3 {[%emt 0:03:01]} Ra5 {[%emt 0:00:18]} 39. Rfe3 {[%emt 0:06:57]} Rc5 {[%emt 0:06:05]} 40. Bg2 {[%emt 0:03:32]} Nf6 {[%emt 0:04:41]} 41. Rd1 {[%emt 0:32:33]} Nd7 {[%emt 0:37:25]} 42. Re7 {[%emt 0:00:00]} Re5 {[%emt 0:00:00]} 43. Rxe5 {[%emt 0:00:00]} Nxe5 {[%emt 0:00:00]} 44. Rd4 {[%emt 0:00:00]} Ke8 {[%emt 0:00:00]} 45. Be4 {[%emt 0:00:00]} h6 {[%emt 0:00:00]} 46. Kf1 {[%emt 0:00:00]} Rc8 {[%emt 0:00:00]} 47. Rd5 {[%emt 0:00:00]} Nd7 {[%emt 0:00:00]} 48. Ke2 {[%emt 0:00:00]} Nf6 {[%emt 0:00:06]} 49. Bf5 {[%emt 0:00:00]} Rc2+ {[%emt 0:01:49]} 50. Rd2 {[%emt 0:00:00]} Rxd2+ {[%emt 0:00:15]} 51. Kxd2 {[%emt 0:00:00]} Kd8 {[%emt 0:00:11]} 52. Kc3 {[%emt 0:00:00]} Ne8 {[%emt 0:00:02]} 53. d7 {[%emt 0:00:07]} Nd6 {[%emt 0:04:02]} 54. Kd4 {[%emt 0:01:20]} Nxf5+ {[%emt 0:04:21]} 55. gxf5 {[%emt 0:00:08]} Kxd7 {[%emt 0:00:03]} 56. Ke5 {[%emt 0:04:19]} Ke7 {[%emt 0:00:03]} 57. Kd5 {[%emt 0:00:52]} Kd7 {[%emt 0:00:24]} 58. Ke5 {[%emt 0:01:16]} Ke7 {[%emt 0:00:02]} 59. f6+ {[%emt 0:02:21]} Kd7 {[%emt 0:00:02]} 60. Kd5 {[%emt 0:00:55]} Kc7 {[%emt 0:00:02]} 61. Ke5 {[%emt 0:00:22]} Kd7 {[%emt 0:00:42]} 62. f3 {[%emt 0:00:33]} Kc6 {[%emt 0:01:08]} 63. f4 {[%emt 0:00:21]} gxf4 {[%emt 0:00:02]} 64. Kxf4 {[%emt 0:00:02]} Kd5 {[%emt 0:01:23]} 65. Kg4 {[%emt 0:00:38]} Ke5 {[%emt 0:00:02]} 66. Kh5 {[%emt 0:00:08]} Kxf6 {[%emt 0:03:04]} 67. Kxh6 {[%emt 0:00:03]} Ke5 {[%emt 0:00:00]} 68. h4 {[%emt 0:00:44]} f5 {[%emt 0:00:00]} 69. Kg6 {[%emt 0:00:37]} f4 {[%emt 0:00:00]} 70. h5 {[%emt 0:00:04]} f3 {[%emt 0:00:00]} 71. h6 {[%emt 0:00:02]} f2 {[%emt 0:00:00]} 72. h7 {[%emt 0:00:05]} f1=Q {[%emt 0:03:00]} 73. h8=Q+ {[%emt 0:00:03]} Kd6 {[%emt 0:00:00]} 74. Qd8+ {[%emt 0:00:29]} Kc6 {[%emt 0:00:00]} 75. Qe8+ {[%emt 0:00:18]} Kc5 {[%emt 0:01:30]} 76. Qe5+ {[%emt 0:04:14]} 0-1

[Event "Bangabandhu Premier Div League 2023-24"]
[Site "Dhaka"]
[Date "2024.02.07"]
[Round "7.1"]
[White "Islam, M.M. Zahirul"]
[Black "Zia, Tahsin Tajwar"]
[Result "1-0"]
[ECO "D24"]
[WhiteElo "1876"]
[BlackElo "2275"]
[Annotator "RC"]
[PlyCount "171"]
[EventDate "2024.02.01"]
[EventCountry "BAN"]
[SourceTitle "playchess.com"]
[Source "ChessBase"]
[SourceQuality "1"]
[TimeControl "40/5400+30:1800+30"]

1. d4 {[%emt 1:31:00]} d5 {[%emt 0:14:55]} 2. c4 {[%emt 0:00:00]} e6 {[%emt 0:00:13]} 3. Nc3 {[%emt 0:00:00]} a6 {[%emt 0:00:17]} 4. Nf3 {[%emt 0:01:30]} Nf6 {[%emt 0:05:03]} 5. Bg5 {[%emt 0:00:00]} dxc4 {[%emt 0:00:18]} 6. a4 {[%emt 0:01:00]} Bb4 {[%emt 1:12:44]} 7. e3 {[%emt 0:00:30]} c5 {[%emt 0:00:00]} 8. Bxc4 {[%emt 0:00:30]} Qa5 {[%emt 0:00:00]} 9. Bxf6 {[%emt 0:00:00]} Bxc3+ {[%emt 0:00:00]} 10. bxc3 {[%emt 0:00:00]} Qxc3+ {[%emt 0:00:00]} 11. Nd2 {[%emt 0:01:30]} gxf6 {[%emt 0:02:30]} 12. Be2 {[%emt 0:00:00]} Nd7 {[%emt 0:00:00]} 13. O-O {[%emt 0:01:00]} O-O {[%emt 0:01:00]} 14. Ne4 {[%emt 0:00:00]} Qa5 {[%emt 0:00:00]} 15. dxc5 {[%emt 0:00:00]} f5 {[%emt 0:00:00]} 16. c6 {[%emt 0:00:00]} bxc6 {[%emt 0:00:00]} 17. Nd6 {[%emt 0:02:00]} Rd8 {[%emt 0:02:00]} 18. Qc2 {[%emt 0:00:30]} Qc5 {[%emt 0:00:00]} 19. Nc4 {[%emt 0:00:30]} a5 {[%emt 0:01:00]} 20. Rac1 {[%emt 0:00:30]} Ba6 {[%emt 0:00:00]} 21. Qa2 {[%emt 0:00:30]} Nf6 {[%emt 0:01:00]} 22. Qb2 {[%emt 0:00:30]} Nd5 {[%emt 0:00:00]} 23. Ne5 {[%emt 0:00:00]} Qb4 {[%emt 0:01:00]} 24. Qc2 {[%emt 0:01:00]} Qd6 {[%emt 0:00:30]} 25. Nc4 {[%emt 0:00:00]} Bxc4 {[%emt 0:00:00]} 26. Qxc4 {[%emt 0:01:00]} Rdc8 {[%emt 0:00:00]} 27. Rfd1 {[%emt 0:00:30]} Qb4 {[%emt 0:00:00]} 28. Qc2 {[%emt 0:00:00]} Rab8 {[%emt 0:00:24]} 29. Ba6 {[%emt 0:00:00]} Rd8 {[%emt 0:00:26]} 30. Qxc6 {[%emt 0:00:00]} Rd6 {[%emt 0:00:46]} 31. Qc4 {[%emt 0:00:00]} Rbd8 {[%emt 0:01:54]} 32. g3 {[%emt 0:00:00]} Qb6 {[%emt 0:00:00]} 33. Bb5 {[%emt 0:00:00]} Nb4 {[%emt 0:00:25]} 34. Rxd6 {[%emt 0:00:00]} Qxd6 {[%emt 0:01:05]} 35. h4 {[%emt 0:00:00]} Qd2 {[%emt 0:00:00]} 36. Qc7 {[%emt 0:04:30]} Na2 {[%emt 0:00:00]} 37. Rc2 {[%emt 0:00:30]} Qe1+ {[%emt 0:00:37]} 38. Kh2 {[%emt 0:00:00]} Rd1 {[%emt 0:00:40]} 39. Qb8+ {[%emt 0:00:00]} Kg7 {[%emt 0:01:13]} 40. Qe5+ {[%emt 0:00:00]} Kg6 {[%emt 0:00:00]} 41. h5+ {[%emt 0:00:00]} Kxh5 {[%emt 0:29:40]} 42. Be2+ {[%emt 0:00:00]} Kg6 {[%emt 0:00:01]} 43. Bxd1 {[%emt 0:00:00]} Nb4 {[%emt 0:02:19]} 44. g4 {[%emt 0:00:00]} Qxd1 {[%emt 0:00:00]} 45. gxf5+ {[%emt 0:34:00]} exf5 {[%emt 0:01:00]} 46. Rc8 {[%emt 0:00:00]} Qh5+ {[%emt 0:00:00]} 47. Kg2 {[%emt 0:00:00]} Qg4+ {[%emt 0:00:00]} 48. Qg3 {[%emt 0:00:00]} Kf6 {[%emt 0:00:19]} 49. f3 {[%emt 0:00:00]} Qxg3+ {[%emt 0:00:42]} 50. Kxg3 {[%emt 0:00:00]} Nd5 {[%emt 0:00:05]} 51. Kf2 {[%emt 0:00:00]} f4 {[%emt 0:00:26]} 52. Rc6+ {[%emt 0:03:30]} Ke7 {[%emt 0:01:17]} 53. e4 {[%emt 0:00:00]} Nb4 {[%emt 0:00:09]} 54. Rc7+ {[%emt 0:00:00]} Ke6 {[%emt 0:00:12]} 55. Ra7 {[%emt 0:00:00]} Nc6 {[%emt 0:00:10]} 56. Rc7 {[%emt 0:02:00]} Ne5 {[%emt 0:02:10]} 57. Ra7 {[%emt 0:00:00]} Nc6 {[%emt 0:00:00]} 58. Ra8 {[%emt 0:01:00]} Kd6 {[%emt 0:00:20]} 59. Rh8 {[%emt 0:00:00]} Ne5 {[%emt 0:01:10]} 60. Rxh7 {[%emt 0:00:00]} Ke6 {[%emt 0:00:30]} 61. Rh8 {[%emt 0:00:00]} Nd3+ {[%emt 0:00:30]} 62. Ke2 {[%emt 0:00:00]} Nc5 {[%emt 0:00:00]} 63. Ra8 {[%emt 0:02:30]} Nxa4 {[%emt 0:00:00]} 64. Rxa5 {[%emt 0:00:00]} Nb2 {[%emt 0:01:30]} 65. Rc5 {[%emt 0:00:00]} Kd6 {[%emt 0:00:00]} 66. Rf5 {[%emt 0:00:00]} Ke6 {[%emt 0:00:00]} 67. Rxf4 {[%emt 0:00:00]} Nc4 {[%emt 0:00:00]} 68. Rh4 {[%emt 0:02:30]} Nd6 {[%emt 0:00:35]} 69. Kd3 {[%emt 0:00:00]} f6 {[%emt 0:01:02]} 70. Rh8 {[%emt 0:00:00]} Nf7 {[%emt 0:00:18]} 71. Ra8 {[%emt 0:00:00]} Ne5+ {[%emt 0:00:30]} 72. Ke2 {[%emt 0:00:00]} Ng6 {[%emt 0:00:11]} 73. Ke3 {[%emt 0:00:00]} Ne5 {[%emt 0:00:22]} 74. Ra4 {[%emt 0:00:00]} Nf7 {[%emt 0:00:27]} 75. f4 {[%emt 0:00:00]} Nd6 {[%emt 0:00:04]} 76. Rb4 {[%emt 0:00:00]} Ke7 {[%emt 0:00:48]} 77. Kd4 {[%emt 0:00:00]} f5 {[%emt 0:00:18]} 78. e5 {[%emt 0:00:00]} Ne4 {[%emt 0:00:02]} 79. Rb7+ {[%emt 0:00:00]} Ke6 {[%emt 0:00:07]} 80. Rb6+ {[%emt 0:00:00]} Ke7 {[%emt 0:00:06]} 81. Rc6 {[%emt 0:00:00]} Ng3 {[%emt 0:03:40]} 82. Rf6 {[%emt 0:00:00]} Ne2+ {[%emt 0:00:00]} 83. Ke3 {[%emt 0:00:00]} Nc3 {[%emt 0:00:00]} 84. Rxf5 {[%emt 0:00:00]} Nd5+ {[%emt 0:00:00]} 85. Kd4 {[%emt 0:00:00]} Ke6 {[%emt 0:00:00]} 86. Rf8 {[%emt 0:00:00]} 1-0

[Event "Bangabandhu Premier Div League 2023-24"]
[Site "Dhaka"]
[Date "2024.02.07"]
[Round "7.2"]
[White "Puranik, Abhimanyu"]
[Black "Rahman, Syed Mahfuzur"]
[Result "1-0"]
[ECO "A20"]
[WhiteElo "2645"]
[BlackElo "2087"]
[Annotator "TA"]
[PlyCount "67"]
[EventDate "2024.02.01"]
[EventCountry "BAN"]
[SourceTitle "playchess.com"]
[Source "ChessBase"]
[SourceQuality "1"]
[TimeControl "40/5400+30:1800+30"]

{[%evp 11,67,23,21,31,17,10,45,67,72,79,67,77,69,70,95,84,81,61,79,70,111,111,121,112,124,123,129,146,160,160,226,82,93,71,63,58,70,12,6,9,14,12,12,10,63,33,340,395,372,383,533,508,775,738,943,913,6108,5904]} 1. c4 {[%emt 0:00:21]} e5 {[%emt 0:00:52]} 2. g3 {[%emt 1:31:09]} Nf6 {[%emt 0:03:37]} 3. Bg2 {[%emt 0:00:00]} d5 {[%emt 0:00:13]} 4. cxd5 {[%emt 0:00:00]} Nxd5 {[%emt 0:00:02]} 5. Nf3 {[%emt 0:00:00]} Nc6 {[%emt 0:00:02]} 6. O-O {[%emt 0:00:00]} Nb6 {[%emt 1:28:44]} 7. b3 {[%emt 0:02:30]} Be7 {[%emt 0:00:00]} 8. Bb2 {[%emt 0:00:30]} Bf6 {[%emt 0:01:00] [#] aiming for ...e4.} 9. Nc3 {[%emt 0:00:30] White is slightly better.} e4 {[%emt 0:00:30]} 10. Ne1 {[%emt 0:00:30]} Bf5 {[%emt 0:00:30]} 11. d3 {[%emt 0:00:00]} (11. Bxe4 $2 Bxe4 12. Nc2 Bg6 $19) 11... exd3 {[%emt 0:00:00]} 12. e4 {[%emt 0:00:00]} Bc8 {[%emt 0:01:00]} 13. Nxd3 {[%emt 0:00:00][%cal Oe4e5]} O-O {[%emt 0:00:00]} 14. Re1 {[%emt 0:00:00]} Bd4 {[%emt 0:01:00]} 15. Qc2 {[%emt 0:00:00]} Bg4 {[%emt 0:00:00]} 16. h3 {[%emt 0:00:00]} Be6 {[%emt 0:00:00]} 17. Rad1 {[%emt 0:03:30]} Qg5 {[%emt 0:01:30]} 18. Kh2 {[%emt 0:00:30]} Rad8 {[%emt 0:00:00]} 19. f4 {[%emt 0:00:30][%cal Bf2f4,Bf4f5][%mdl 32]} Qh6 {[%emt 0:01:00]} 20. f5 {[%emt 0:00:00]} Bc8 {[%emt 0:00:00]} (20... Bd7 $16 {is a better defense.} 21. Bc1 Qd6) 21. Nd5 {[%emt 0:01:00]} (21. Bc1 $18 {is more deadly.} Qf6 22. Nb5) 21... Bxb2 $16 {[%emt 0:00:00]} 22. Qxb2 {[%emt 0:00:30]} Nxd5 {[%emt 0:00:00]} 23. exd5 {[%emt 0:00:00]} Nb8 {[%emt 0:02:00]} 24. Ne5 {[%emt 0:00:00]} (24. Qe5 $14) 24... Bxf5 $11 {[%emt 0:00:00]} 25. Qf2 $36 {[%emt 0:00:00][%csl LRa7,LRf5][%mdl 2048] White has good play.} Bc8 {[%emt 0:01:00]} 26. Qxa7 {[%emt 0:00:00] Black is weak on the light squares} Nd7 {[%emt 0:00:30]} 27. Qd4 {[%emt 0:00:00]} (27. Qe3 {simplifies} Qxe3 28. Rxe3 Nf6 29. Nc4) 27... Nf6 {[%emt 0:00:00]} ({Black should try} 27... Rfe8 $11) 28. Qc4 {[%emt 0:00:00] White is more active.} Rfe8 $2 {[%emt 0:00:00][%mdl 8192] This move loses the game for Black.} (28... Ne8 $14) 29. Qxc7 $18 {[%emt 0:00:00]} (29. Nxf7 Kxf7 30. d6+ Kf8 31. dxc7 Rxd1 32. Qc5+ Rd6 33. Qxd6+ Kf7 $17) 29... Qh5 {[%emt 0:01:30]} 30. d6 {[%emt 0:04:00]} h6 {[%emt 0:00:00]} 31. d7 {[%emt 0:00:00] White is clearly winning.} (31. Bxb7 $2 {loses.} Qxh3+ (31... Bxb7 $2 32. g4 $19) 32. Kg1 Bxb7 (32... Qxg3+ $2 33. Bg2 $19) 33. Qxf7+ Kh8 34. Qxb7 Rxe5 (34... Qxg3+ 35. Qg2 $11) 35. Rxe5 Qxg3+ 36. Qg2 Qxe5 $19) 31... Bxd7 {[%emt 0:01:00]} (31... Rxd7 $142 32. Nxd7 Bxd7 33. Rxe8+ (33. Bxb7 Re2+ 34. Kg1 Rxa2 $16) (33. Qxb7 Ng4+ 34. Kg1 Qc5+ 35. Kh1 Nf2+ 36. Kh2 Nxd1 $14) 33... Bxe8) 32. Nxd7 {[%emt 0:00:00]} Ng4+ {[%emt 0:00:00]} 33. Kg1 {[%emt 0:00:00]} Ne3 {[%emt 0:00:28] [#]} 34. Nf6+ $1 {[%emt 0:02:00][%mdl 512] Weighted Error Value: White=0.11 (very precise) /Black=0.41.  Loses game:     	---       	Black=1      Mistake:       	White=2     	Black=3      Inaccurate:     	White=1     	Black=3      OK:         	White=15    	Black=7      Best:        	White=3     	Black=4} 1-0

[Event "Bangabandhu Premier Div League 2023-24"]
[Site "Dhaka"]
[Date "2024.02.07"]
[Round "7.2"]
[White "Ahmed, Sheikh Nasir"]
[Black "Hasan Md, Emam"]
[Result "1-0"]
[ECO "A29"]
[WhiteElo "2182"]
[BlackElo "2053"]
[Annotator "RC"]
[PlyCount "155"]
[EventDate "2024.02.01"]
[EventCountry "BAN"]
[SourceTitle "playchess.com"]
[Source "ChessBase"]
[SourceQuality "1"]
[TimeControl "40/5400+30:1800+30"]

1. c4 {[%emt 0:00:07]} e5 {[%emt 0:01:10]} 2. g3 {[%emt 0:00:10]} Nc6 {[%emt 0:01:09]} 3. Bg2 {[%emt 0:00:11]} Nf6 {[%emt 0:01:17]} 4. Nc3 {[%emt 0:00:39]} d6 {[%emt 0:01:19]} 5. d3 {[%emt 0:00:19]} Be7 {[%emt 0:00:02]} 6. Nf3 {[%emt 0:00:29]} O-O {[%emt 0:00:04]} 7. O-O {[%emt 0:00:09]} h6 {[%emt 0:00:21]} 8. Rb1 {[%emt 0:00:16]} Be6 {[%emt 0:00:57]} 9. b3 {[%emt 0:08:18]} Qd7 {[%emt 0:07:51]} 10. Re1 {[%emt 0:01:15]} Rad8 {[%emt 0:03:35]} 11. Bb2 {[%emt 0:07:24]} Bh3 {[%emt 0:00:28]} 12. Bh1 {[%emt 0:00:12]} Ng4 {[%emt 0:06:53]} 13. Nd5 {[%emt 0:06:31]} Rfe8 {[%emt 0:04:11]} 14. b4 {[%emt 0:02:34]} Bf8 {[%emt 0:06:46]} 15. e4 {[%emt 0:27:12]} Ne7 {[%emt 0:04:17]} 16. Nxe7+ {[%emt 0:00:23]} Qxe7 {[%emt 0:58:10]} 17. d4 {[%emt 0:02:25]} Qf6 {[%emt 0:00:00]} 18. d5 {[%emt 0:00:35]} g5 {[%emt 0:00:00]} 19. Qc2 {[%emt 0:12:21]} c6 {[%emt 0:00:00]} 20. Bg2 {[%emt 0:06:54]} Bxg2 {[%emt 0:00:00]} 21. Kxg2 {[%emt 0:00:02]} Qg6 {[%emt 0:00:00]} 22. dxc6 {[%emt 0:01:02]} bxc6 {[%emt 0:00:00]} 23. h3 {[%emt 0:05:08]} Nf6 {[%emt 0:00:00]} 24. c5 {[%emt 0:00:09]} Nd7 {[%emt 0:00:00]} 25. cxd6 {[%emt 0:00:29]} Qxd6 {[%emt 0:00:00]} 26. a3 {[%emt 0:01:15]} Qe6 {[%emt 0:00:00]} 27. Rbc1 {[%emt 0:00:28]} Rc8 {[%emt 0:00:00]} 28. Red1 {[%emt 0:00:19]} f6 {[%emt 0:00:00]} 29. Nd2 {[%emt 0:00:55]} c5 {[%emt 0:00:00]} 30. b5 {[%emt 0:00:45]} a6 {[%emt 0:00:00]} 31. bxa6 {[%emt 0:01:12]} Qxa6 {[%emt 0:00:00]} 32. Nc4 {[%emt 0:04:36]} Qe6 {[%emt 0:00:00]} 33. Ne3 {[%emt 0:02:46]} Nb6 {[%emt 0:00:00]} 34. Bc3 {[%emt 0:00:48]} Ra8 {[%emt 0:00:00]} 35. Ra1 {[%emt 0:00:18]} Nc4 {[%emt 0:00:00]} 36. Nxc4 {[%emt 0:02:12]} Qxc4 {[%emt 0:00:00]} 37. a4 {[%emt 0:01:19]} Reb8 {[%emt 0:00:00]} 38. a5 {[%emt 0:00:40]} Rb3 {[%emt 0:00:00]} 39. Rdc1 {[%emt 0:00:06]} Qb5 {[%emt 0:00:00]} 40. Be1 {[%emt 0:01:55]} Be7 {[%emt 0:06:01]} 41. Qc4+ {[%emt 0:17:49]} Qxc4 {[%emt 0:00:58]} 42. Rxc4 {[%emt 0:00:02]} Ra6 {[%emt 0:00:29]} 43. Bd2 {[%emt 0:01:14]} Rb5 {[%emt 0:00:44]} 44. Ra3 {[%emt 0:01:01]} Kf7 {[%emt 0:00:14]} 45. Rd3 {[%emt 0:00:51]} Ke6 {[%emt 0:00:28]} 46. h4 {[%emt 0:01:22]} Rb1 {[%emt 0:05:28]} 47. h5 {[%emt 0:01:49]} Bd6 {[%emt 0:06:44]} 48. Kf3 {[%emt 0:00:43]} Rb5 {[%emt 0:05:28]} 49. Ke2 {[%emt 0:00:27]} Bc7 {[%emt 0:00:58]} 50. Ra3 {[%emt 0:00:28]} Kd6 {[%emt 0:06:37]} 51. Kd1 {[%emt 0:00:33]} Kc6 {[%emt 0:00:37]} 52. Rca4 {[%emt 0:01:00]} Bd6 {[%emt 0:01:36]} 53. Rf3 {[%emt 0:00:50]} Be7 {[%emt 0:00:18]} 54. Kc2 {[%emt 0:00:19]} Bd8 {[%emt 0:00:46]} 55. Rfa3 {[%emt 0:02:25]} Be7 {[%emt 0:02:24]} 56. Rd3 {[%emt 0:00:27]} Bd6 {[%emt 0:00:21]} 57. Rda3 {[%emt 0:02:21]} Bc7 {[%emt 0:00:13]} 58. Ra2 {[%emt 0:00:44]} Bd8 {[%emt 0:00:16]} 59. Kd3 {[%emt 0:00:38]} Kd6 {[%emt 0:02:17]} 60. Kc4 {[%emt 0:00:23]} Kc6 {[%emt 0:00:07]} 61. Bc3 {[%emt 0:02:13]} Bc7 {[%emt 0:00:38]} 62. Ra1 {[%emt 0:00:31]} Bd6 {[%emt 0:00:45]} 63. Rd1 {[%emt 0:00:35]} Bc7 {[%emt 0:00:05]} 64. Rd5 {[%emt 0:03:02]} Bb8 {[%emt 0:07:56]} 65. Rd8 {[%emt 0:00:20]} Rb1 {[%emt 0:00:39]} 66. Rh8 {[%emt 0:00:59]} Ra7 {[%emt 0:00:57]} 67. Rxh6 {[%emt 0:01:35]} Rf7 {[%emt 0:00:19]} 68. a6 {[%emt 0:00:38]} Ba7 {[%emt 0:00:31]} 69. Bxe5 {[%emt 0:00:51]} Re1 {[%emt 0:01:00]} 70. f3 {[%emt 0:01:02]} g4 {[%emt 0:00:28]} 71. Bxf6 {[%emt 0:00:37]} Kd7 {[%emt 0:00:11]} 72. fxg4 {[%emt 0:00:36]} Rxe4+ {[%emt 0:00:02]} 73. Kb5 {[%emt 0:00:24]} Re3 {[%emt 0:00:51]} 74. g5 {[%emt 0:00:36]} Rxg3 {[%emt 0:00:21]} 75. Rf4 {[%emt 0:00:45]} Rb3+ {[%emt 0:00:46]} 76. Ka4 {[%emt 0:00:14]} Rb6 {[%emt 0:00:11]} 77. Ka5 {[%emt 0:00:28]} Re6 {[%emt 0:01:05]} 78. g6 {[%emt 0:00:26]} 1-0

[Event "Bangabandhu Premier Div League 2023-24"]
[Site "Dhaka"]
[Date "2024.02.07"]
[Round "7.3"]
[White "Hasan, Sk. Rashedul"]
[Black "Ter-Sahakyan, Samvel"]
[Result "0-1"]
[ECO "B23"]
[WhiteElo "1807"]
[BlackElo "2649"]
[Annotator "TA"]
[PlyCount "72"]
[EventDate "2024.02.01"]
[EventCountry "BAN"]
[SourceTitle "playchess.com"]
[Source "ChessBase"]
[SourceQuality "1"]
[TimeControl "40/5400+30:1800+30"]

{[%evp 9,72,17,15,-12,-12,-28,-19,-20,-22,-43,-37,-40,-37,-31,-21,-31,-16,-64,-65,-54,-56,-80,-87,-107,-63,-129,-120,-140,-131,-131,-127,-162,-152,-205,-197,-230,-233,-441,-456,-403,-313,-460,-452,-685,-690,-764,-761,-744,-737,-683,-569,-866,-890,-1762,-1747,-5435,-5435,-5002,-516,-1209,-1214,-1208,-1191,-1202,-1150]} 1. e4 {[%emt 0:00:04]} c5 {[%emt 0:00:17]} 2. Nc3 {[%emt 0:00:21]} d6 {[%emt 0:00:08]} 3. f4 {[%emt 0:00:15]} g6 {[%emt 0:00:04]} 4. Nf3 {[%emt 0:00:13]} Bg7 {[%emt 1:32:01]} 5. Bb5+ {[%emt 0:07:24]} Bd7 {[%emt 0:00:00]} 6. Bc4 {[%emt 0:00:06]} Nc6 {[%emt 0:00:00]} 7. a3 {[%emt 0:00:53]} e6 {[%emt 0:00:00]} 8. O-O {[%emt 0:00:12] The position is equal.} Nge7 {[%emt 0:00:00]} 9. Qe1 {[%emt 0:00:38]} O-O {[%emt 0:00:00]} 10. d3 {[%emt 1:25:24]} Nd4 {[%emt 0:00:00]} 11. Nxd4 {[%emt 0:00:00]} cxd4 {[%emt 0:00:00]} 12. Ne2 {[%emt 0:01:00]} Ba4 {[%emt 0:04:00]} 13. c3 {[%emt 0:00:00]} (13. f5 $1 $11 exf5 (13... gxf5 14. Bg5 $11) 14. Bg5) 13... d5 {[%emt 0:00:30]} 14. Ba2 {[%emt 0:01:00]} Bb5 {[%emt 0:00:30] aiming for ...dxe4.} 15. c4 {[%emt 0:00:00]} dxc4 {[%emt 0:00:00] White is on the road to losing.} 16. dxc4 {[%emt 0:00:00]} Ba6 {[%emt 0:01:00]} 17. Bd2 {[%emt 0:01:30]} (17. Ng3 $15) 17... d3 $36 {[%emt 0:00:30][%csl LRb2,LRe2][%mdl 2048] Black has strong initiative.} 18. Nc1 {[%emt 0:00:30] [#]} Bxc4 $1 {[%emt 0:00:00][%mdl 512] Black has more active pieces.} 19. Bxc4 {[%emt 0:00:00][%cal Of1f2] Threatens to win with Rf2!} Qd4+ {[%emt 0:00:00]} ({And not} 19... Bxb2 20. Rb1 $16) 20. Kh1 {[%emt 0:00:00]} Qxc4 {[%emt 0:00:00]} 21. Rb1 {[%emt 0:00:00] White is weak on the light squares} (21. Bb4 $17) 21... Rfd8 $19 {[%emt 0:02:00]} 22. Rf3 {[%emt 0:00:00]} Nc6 {[%emt 0:00:30]} 23. f5 $2 {[%emt 0:00:00]} (23. e5) 23... exf5 {[%emt 0:00:00]} 24. exf5 {[%emt 0:00:00]} Re8 {[%emt 0:01:00] Wards off f6} 25. Qf1 {[%emt 0:03:30]} (25. Qd1 $142) 25... Ne5 {[%emt 0:00:30] Black is clearly winning.} 26. Rf2 {[%emt 0:00:00]} (26. Rg3 $142 Qc2 27. Nxd3 Qxd2 28. Rd1) 26... Qc2 {[%emt 0:00:30]} 27. Na2 {[%emt 0:00:00]} Ng4 {[%emt 0:00:00][%csl LRb2,LRf2]} 28. Rf4 {[%emt 0:00:00]} Qxd2 {[%emt 0:01:00]} 29. Rxg4 {[%emt 0:00:00]} Re3 {[%emt 0:00:30] [#] ...Rae8 would now be deadly.} 30. Rf4 {[%emt 0:00:00]} Rae8 {[%emt 0:00:00] ...Re1 is the strong threat.} 31. Rf2 {[%emt 0:00:00]} Re2 {[%emt 0:00:00]} 32. Rxe2 {[%emt 0:00:00]} dxe2 {[%emt 0:00:00]} 33. Qe1 {[%emt 0:00:00]} Qxe1+ {[%emt 0:00:00]} (33... Rd8 $142 34. Qg1 Qd1 (34... Bxb2 $2 35. Nb4 $19) 35. h4 Qxb1 (35... gxf5 $2 36. Kh2 $19) 36. Qxb1 Rd1+ 37. Qxd1 exd1=Q+ 38. Kh2 Be5+ (38... Bxb2 {gets mated.} 39. fxg6 Be5+ 40. g3 Qe2+ 41. Kh3 Qf2 42. gxh7+ Kxh7 43. Kg4 Qxg3+ 44. Kh5 Qg6#) 39. g3 Qc2+ (39... Bxb2 {is a self mate.} 40. fxg6 Qe2+ 41. Kh3 hxg6 42. Nc3 Bxc3 43. h5 Qf1+ 44. Kh2 gxh5 45. a4 Ba5 46. g4 Bc7#) 40. Kg1 Bxg3 41. f6 Qh2+ 42. Kf1 Qf2#) 34. Rxe1 {[%emt 0:00:00]} Rd8 {[%emt 0:00:00] ( -> ...Rd1)} 35. Kg1 {[%emt 0:00:00]} Bd4+ {[%emt 0:00:00]} (35... gxf5 $2 36. Rxe2 Rd1+ 37. Kf2 $19) 36. Kh1 {[%emt 0:00:00]} Bf2 {[%emt 0:00:00] Weighted Error Value: White=0.99/Black=0.25 (precise) .  Mistake:       	White=6     	---        Inaccurate:     	White=1     	Black=1      OK:         	White=6     	Black=11     Best:        	---       	Black=2} 0-1